bitfinex-derivatives/quotes_ETHF0:USTF0_20260117
["timestamp","ask_amount","ask_price","bid_price","bid_amount"]
[1768615933816,0.91535811,3289.9,3289.2,0.00265615]
[1768615934013,0.91535811,3289.8,3289.2,0.00265615]
[1768615934313,0.40191065,3289.9,3289.2,0.00265615]
[1768615934513,0.91537406,3289.8,3289.2,0.00265615]
[1768615934713,0.40191065,3289.9,3289.2,0.00265615]
[1768615934914,0.91537406,3289.8,3289.2,0.00265615]
[1768615935215,0.40191065,3289.9,3289.2,0.00265615]
[1768615935515,0.91539261,3289.8,3289.2,0.00265615]
[1768615935817,1.31727301,3289.7,3288.1,0.39688608]
[1768615936018,0.91536236,3289.6,3288.4,0.98674456]
[1768615936221,0.40191065,3289.7,3288.4,0.98674456]
[1768615936414,0.91532974,3289.6,3288.4,0.98674456]
[1768615936615,0.40191065,3289.7,3288.4,0.98674456]
[1768615936918,0.91532867,3289.6,3288.4,0.98915608]
[1768615937114,0.40191065,3289.7,3288.4,0.98915608]
[1768615937305,0.91534994,3289.6,3288.4,0.98915608]
[1768615937509,0.40191065,3289.7,3288.4,0.98915608]
[1768615937709,0.91531816,3289.6,3288.4,0.98915608]
[1768615937911,0.40191065,3289.7,3288.4,0.98915608]
[1768615938118,0.91531719,3289.6,3288.4,0.98915608]
[1768615938316,0.40191065,3289.7,3288.4,0.98915608]
[1768615938514,0.91536902,3289.6,3288.4,0.98915608]
[1768615938704,0.40191065,3289.7,3288.4,0.98915608]
[1768615938909,0.91538214,3289.6,3288.4,0.98915608]
[1768615939105,0.40191065,3289.7,3288.4,0.98915608]
[1768615939318,0.91540937,3289.6,3288.4,0.98915608]
[1768615939521,0.40191065,3289.7,3288.4,0.98915608]
[1768615939719,0.9153859,3289.6,3288.4,0.98915608]
[1768615939920,0.40191065,3289.7,3288.4,0.98915608]
[1768615940122,0.91538628,3289.6,3288.4,0.98915608]
[1768615940319,0.40191065,3289.7,3288.4,0.98915608]
[1768615940521,0.91539802,3289.6,3288.4,0.98915608]
[1768615940712,0.40191065,3289.7,3288.4,0.98915608]
[1768615940912,0.91539805,3289.6,3288.4,0.98915608]
[1768615941215,0.40191065,3289.7,3288.4,0.98915608]
[1768615941413,0.91541945,3289.6,3288.4,0.98915608]
[1768615941711,0.40191065,3289.7,3288.4,0.98915608]
[1768615941911,0.91547327,3289.6,3288.4,0.98915608]
[1768615942106,0.40191065,3289.7,3288.4,0.98915608]
[1768615942324,0.4252582,3289.5,3288.4,0.00241152]
[1768615942523,1.34077881,3289.4,3288.4,0.00241152]
[1768615942825,0.91552061,3289.3,3288.4,0.00241152]
[1768615947227,0.4252582,3289.4,3288.4,0.00241152]
[1768615948328,0.4252582,3289.8,3288.4,0.00241152]
[1768615948528,1.34050315,3289.7,3288.4,0.00241152]
[1768615948726,0.91524495,3289.6,3288.4,0.00241152]
[1768615949028,0.91524495,3289.5,3288.4,0.00241152]
[1768615949216,0.4252582,3289.7,3288.4,0.00241152]
[1768615949417,1.34045477,3289.6,3288.4,0.00241152]
[1768615949634,0.91519657,3289.5,3288.4,0.00241152]
[1768615949829,0.4252582,3289.6,3288.4,0.00241152]
[1768615950125,0.91519433,3289.5,3288.4,0.00241152]
[1768615950328,0.4252582,3289.6,3288.4,0.00241152]
[1768615950528,0.91516971,3289.5,3288.4,0.00241152]
[1768615950829,0.4252582,3289.6,3288.4,0.00241152]
[1768615951018,0.91516978,3289.5,3288.4,0.00241152]
[1768615951220,0.4252582,3289.6,3288.4,0.00241152]
[1768615951420,0.91515266,3289.5,3288.4,0.00241152]
[1768615951716,0.4252582,3289.6,3288.4,0.00241152]
[1768615951920,0.91513954,3289.5,3288.4,0.00241152]
[1768615952120,0.4252582,3289.6,3288.4,0.00241152]
[1768615952427,0.91512707,3289.5,3288.4,0.00241152]
[1768615952626,0.4252582,3289.6,3288.4,0.00241152]
[1768615952828,0.91511849,3289.5,3288.4,0.00241152]
[1768615953030,0.4252582,3289.6,3288.4,0.00241152]
[1768615953225,1.33458127,3289.5,3288.4,0.00241152]
[1768615953428,0.41946278,3289.5,3288.4,0.00241152]
[1768615954628,0.15204,3289.9,3288.4,0.00241152]
[1768615954629,0.41946278,3289.3,3288.4,0.00241152]
[1768615965836,0.91503126,3289.2,3288.4,0.00241152]
[1768615966042,0.41946278,3289.3,3288.4,0.00241152]
[1768615966339,0.91503125,3289.2,3288.4,0.00241152]
[1768615966642,0.41946278,3289.3,3288.4,0.00241152]
[1768615966836,0.9151079,3289.2,3288.4,0.00241152]
[1768615967039,0.41946278,3289.3,3288.4,0.00241152]
[1768615967338,0.15205,3289.8,3288.4,0.00241152]
[1768615967339,1.33457014,3289.2,3288.4,0.00241152]
[1768615967526,0.41946278,3289.2,3288.4,0.00241152]
[1768615970241,0.91561355,3289.1,3288.4,0.00241152]
[1768615970442,0.41946278,3289.2,3288.4,0.00241152]
[1768615970644,0.91561381,3289.1,3288.4,0.00241152]
[1768615970845,0.41946278,3289.2,3288.4,0.00241152]
[1768615971141,0.91561375,3289.1,3288.4,0.00241152]
[1768615971445,0.41946278,3289.2,3288.4,0.00241152]
[1768615971633,0.91584618,3289.1,3288.4,0.00241152]
[1768615971830,0.41946278,3289.2,3288.4,0.00241152]
[1768615972045,0.9158462,3289.1,3288.4,0.00241152]
[1768615972258,0.41946278,3289.2,3288.4,0.00241152]
[1768615972460,0.91622013,3289.1,3288.4,0.00241152]
[1768615972658,0.41946278,3289.2,3288.4,0.00241152]
[1768615972858,0.91622103,3289.1,3288.4,0.00241152]
[1768615973160,0.41946278,3289.2,3288.4,0.00241152]
[1768615973359,0.9162204,3289.1,3288.4,0.00241152]
[1768615973656,0.41946278,3289.2,3288.4,0.00241152]
[1768615973856,0.91622042,3289.1,3288.4,0.00241152]
[1768615974051,0.41946278,3289.2,3288.4,0.00241152]
[1768615974254,1.35131576,3289.1,3288.4,0.00241152]
[1768615974556,0.4350954,3289.1,3288.4,0.00241152]
[1768615974756,0.98674456,3290.1,3287.7,0.98674456]
[1768615974757,0.4350954,3288.9,3287.7,0.98674456]
[1768615975759,0.4350954,3288.9,3287.7,0.9896795]
[1768615981667,0.4350954,3289.5,3288.1,0.98674456]
[1768615981965,0.91613391,3289.4,3288.1,0.98674456]
[1768615982261,0.91613391,3289.3,3288.1,0.98674456]
[1768615982464,0.91613391,3289.2,3288.1,0.98674456]
[1768615982663,0.4350954,3289.5,3288.1,0.98674456]
[1768615982865,0.91617897,3289.4,3288.1,0.98674456]
[1768615983163,0.91617897,3289.3,3288.1,0.98674456]
[1768615983364,0.91617897,3289.2,3288.1,0.98674456]
[1768615983564,0.4350954,3289.5,3288.1,0.98674456]
[1768615983767,0.91622572,3289.4,3288.1,0.98674456]
[1768615983954,0.91622572,3289.3,3288.1,0.98674456]
[1768615984269,0.91622572,3289.2,3288.1,0.98674456]
[1768615984565,0.4350954,3289.5,3288.1,0.98674456]
[1768615984766,0.91627234,3289.4,3288.1,0.98674456]
[1768615984966,0.91627234,3289.3,3288.1,0.98674456]
[1768615985159,0.91627234,3289.2,3288.1,0.98674456]
[1768615985355,0.4350954,3289.5,3288.1,0.98674456]
[1768615985560,1.20938342,3289.4,3288.1,0.98674456]
[1768615985764,0.91627862,3289.3,3288.1,0.98674456]
[1768615986064,0.91627862,3289.2,3288.1,0.98674456]
[1768615986264,0.4350954,3289.5,3288.1,0.98674456]
[1768615986470,1.21055407,3289.4,3288.1,0.98674456]
[1768615986766,0.91744729,3289.3,3288.1,0.98674456]
[1768615986966,0.91744729,3289.2,3288.1,0.98674456]
[1768615987162,0.4350954,3289.5,3288.1,0.98674456]
[1768615987367,1.21056289,3289.4,3288.2,0.98674456]
[1768615987568,0.917454,3289.3,3288.2,0.98674456]
[1768615987765,0.917454,3289.2,3288.2,0.98674456]
[1768615987965,0.4350954,3289.5,3288.2,0.98674456]
[1768615988262,1.21056294,3289.4,3288.2,0.98674456]
[1768615988465,0.91745404,3289.3,3288.2,0.98674456]
[1768615988664,0.91745404,3289.2,3288.2,0.98674456]
[1768615988870,0.4350954,3289.5,3288.2,0.98674456]
[1768615989074,1.21057278,3289.4,3288.2,0.98674456]
[1768615989262,0.91746152,3289.3,3288.2,0.98674456]
[1768615989463,0.4350954,3289.5,3288.2,0.98674456]
[1768615989464,0.91746152,3289.2,3288.2,0.98674456]
[1768615989665,0.4350954,3289.5,3288.2,0.98674456]
[1768615989865,1.21058341,3289.4,3288.2,0.98674456]
[1768615990073,0.9174696,3289.3,3288.2,0.98674456]
[1768615990276,0.9174696,3289.2,3288.2,0.98674456]
[1768615990575,0.4350954,3289.5,3288.2,0.98674456]
[1768615990777,1.21059583,3289.4,3288.2,0.98674456]
[1768615990976,0.91747905,3289.3,3288.2,0.98674456]
[1768615991175,0.91747905,3289.2,3288.2,0.98674456]
[1768615991372,0.4350954,3289.5,3288.6,0.98694495]
[1768615991677,1.21060996,3289.4,3288.6,0.98694495]
[1768615991870,0.91748978,3289.3,3288.6,0.98694495]
[1768615992068,0.91748978,3289.2,3288.6,0.98694495]
[1768615992369,0.4350954,3289.5,3288.6,0.98694495]
[1768615992668,1.21062561,3289.4,3288.6,0.98694495]
[1768615992969,0.91750167,3289.3,3288.6,0.98694495]
[1768615993169,0.91750167,3289.2,3288.6,0.98694495]
[1768615993369,0.4350954,3289.5,3288.6,0.98694495]
[1768615993570,1.21063555,3289.4,3288.6,0.98694495]
[1768615993770,0.91750919,3289.3,3288.6,0.98694495]
[1768615993971,0.91750919,3289.2,3288.8,0.98694495]
[1768615994181,0.4350954,3289.5,3288.6,0.98694495]
[1768615994379,0.91749473,3289.4,3288.6,0.98694495]
[1768615994578,0.91749473,3289.3,3288.6,0.98694495]
[1768615994775,0.91749473,3289.2,3288.6,0.98694495]
[1768615994976,0.4350954,3289.5,3288.6,0.98694495]
[1768615995272,0.91747717,3289.4,3288.6,0.98694495]
[1768615995473,0.4350954,3289.5,3288.6,0.98694495]
[1768615995474,0.91747717,3289.3,3288.6,0.98694495]
[1768615995673,0.91747717,3289.2,3288.6,0.98694495]
[1768615995873,0.4350954,3289.5,3288.6,0.98694495]
[1768615996080,0.91747094,3289.4,3288.6,0.98694495]
[1768615996278,0.91747094,3289.3,3288.6,0.98694495]
[1768615996478,0.91747094,3289.2,3288.6,0.98694495]
[1768615996681,0.4350954,3289.5,3288.6,0.98694495]
[1768615996882,0.9174517,3289.4,3288.6,0.98694495]
[1768615997081,0.9174517,3289.3,3288.6,0.98694495]
[1768615997272,0.9174517,3289.2,3288.6,0.98694495]
[1768615997472,0.4350954,3289.5,3288.6,0.98694495]
[1768615997681,0.91743814,3289.4,3288.6,0.98694495]
[1768615997880,0.91743814,3289.3,3288.6,0.98694495]
[1768615998082,0.91743814,3289.2,3288.6,0.98694495]
[1768615998282,0.4350954,3289.5,3288.6,0.98694495]
[1768615998484,0.917417,3289.4,3288.6,0.98694495]
[1768615998682,0.917417,3289.3,3288.6,0.98694495]
[1768615998889,0.917417,3289.2,3288.6,0.98694495]
[1768615999080,0.4350954,3289.5,3288.6,0.98694495]
[1768615999280,0.91740664,3289.4,3288.6,0.98694495]
[1768615999580,0.91740664,3289.3,3288.6,0.98694495]
[1768615999782,0.91740664,3289.2,3288.6,0.98694495]
[1768615999982,0.4350954,3289.5,3288.6,0.98694495]
[1768616000183,0.91739228,3289.4,3288.6,0.98694495]
[1768616000383,0.91739228,3289.3,3288.6,0.98694495]
[1768616000576,0.91739228,3289.2,3288.6,0.98694495]
[1768616000775,0.4350954,3289.5,3288.6,0.98694495]
[1768616000983,0.91738563,3289.4,3288.6,0.98694495]
[1768616001184,0.91738563,3289.3,3288.6,0.98694495]
[1768616001387,0.91738563,3289.2,3288.6,0.98694495]
[1768616001590,0.4350954,3289.5,3288.6,0.98694495]
[1768616001886,0.91737555,3289.4,3288.6,0.98694495]
[1768616002073,0.91737555,3289.3,3288.6,0.98694495]
[1768616002275,0.91737555,3289.2,3288.6,0.98694495]
[1768616002475,0.4350954,3289.5,3288.6,0.98694495]
[1768616002685,0.91736269,3289.4,3288.6,0.98694495]
[1768616002884,0.91736269,3289.3,3288.6,0.98694495]
[1768616003079,0.91736269,3289.2,3288.6,0.98694495]
[1768616003281,0.4350954,3289.5,3288.6,0.98694495]
[1768616003481,0.91735201,3289.4,3288.6,0.98694495]
[1768616003684,0.91735201,3289.3,3288.6,0.98694495]
[1768616003989,0.91735201,3289.2,3288.6,0.98694495]
[1768616004288,0.4350954,3289.5,3288.6,0.98694495]
[1768616004488,0.91736008,3289.4,3288.6,0.98694495]
[1768616004677,0.4350954,3289.5,3288.6,0.98694495]
[1768616004678,0.91736008,3289.3,3288.6,0.98694495]
[1768616004879,0.91736008,3289.2,3288.6,0.98694495]
[1768616005078,0.4350954,3289.5,3288.6,0.98694495]
[1768616005284,0.91735938,3289.4,3288.6,0.98694495]
[1768616005483,0.91735938,3289.3,3288.6,0.98694495]
[1768616005684,0.91735938,3289.2,3288.6,0.98694495]
[1768616005885,0.4350954,3289.5,3288.6,0.98694495]
[1768616006078,0.91737658,3289.4,3288.6,0.98694495]
[1768616006278,0.91737658,3289.3,3288.6,0.98694495]
[1768616006478,0.91737658,3289.2,3288.6,0.98694495]
[1768616006679,0.4350954,3289.5,3288.6,0.98694495]
[1768616006879,0.91749271,3289.4,3288.6,0.98694495]
[1768616007080,0.91749271,3289.3,3288.6,0.98694495]
[1768616007380,0.91749271,3289.2,3288.6,0.98694495]
[1768616007580,0.4350954,3289.5,3288.6,0.98694495]
[1768616007780,0.9175764,3289.4,3288.6,0.98694495]
[1768616007983,0.4350954,3289.5,3288.6,0.98694495]
[1768616007984,0.9175764,3289.3,3288.6,0.98694495]
[1768616008186,0.9175764,3289.2,3288.6,0.98694495]
[1768616008381,0.4350954,3289.5,3288.6,0.98694495]
[1768616008687,0.91761296,3289.4,3288.6,0.98694495]
[1768616008887,0.91761296,3289.3,3288.6,0.98694495]
[1768616009088,0.91761296,3289.2,3288.6,0.98694495]
[1768616009293,0.4350954,3289.5,3288.6,0.98694495]
[1768616009491,0.9176584,3289.4,3288.6,0.98694495]
[1768616009693,0.9176584,3289.3,3288.6,0.98694495]
[1768616009984,0.9176584,3289.2,3288.6,0.98694495]
[1768616010183,0.4350954,3289.5,3288.6,0.98694495]
[1768616010385,0.91766116,3289.4,3288.6,0.98694495]
[1768616010589,0.91766116,3289.3,3288.6,0.98694495]
[1768616010889,0.91766116,3289.2,3288.6,0.98694495]
[1768616011089,0.4350954,3289.5,3288.6,0.98694495]
[1768616011289,0.91772143,3289.4,3288.6,0.98694495]
[1768616011489,0.91772143,3289.3,3288.6,0.98694495]
[1768616011691,0.91772143,3289.2,3288.6,0.98694495]
[1768616011887,0.4350954,3289.5,3288.6,0.98694495]
[1768616012086,0.9177205,3289.4,3288.6,0.98694495]
[1768616012294,0.9177205,3289.3,3288.6,0.98694495]
[1768616012483,0.9177205,3289.2,3288.6,0.98694495]
[1768616012782,0.4350954,3289.5,3288.6,0.98694495]
[1768616012976,0.91772441,3289.4,3288.6,0.98694495]
[1768616013191,0.91772441,3289.3,3288.6,0.98694495]
[1768616013489,0.91772441,3289.2,3288.4,0.98694495]
[1768616013788,0.4350954,3289.5,3288.4,0.98694495]
[1768616013990,0.9177292,3289.4,3288.4,0.98694495]
[1768616014189,0.9177292,3289.3,3288.4,0.98694495]
[1768616014389,0.9177292,3289.2,3288.4,0.98694495]
[1768616014591,0.4350954,3289.5,3288.4,0.98694495]
[1768616014789,0.91773736,3289.4,3288.4,0.98694495]
[1768616015091,0.91773736,3289.3,3288.4,0.98694495]
[1768616015286,0.91773736,3289.2,3287.8,0.46516283]
[1768616015482,0.4350954,3289.5,3288.4,0.98694495]
[1768616015792,0.91653882,3289.4,3288.4,0.98694495]
[1768616015992,0.91653882,3289.3,3288.4,0.98694495]
[1768616016292,0.91653882,3289.2,3288.4,0.98694495]
[1768616016486,0.91653882,3289.1,3288.4,0.98694495]
[1768616016687,0.91653882,3289.0,3288.4,0.98694495]
[1768616016994,0.43377436,3289.4,3287.8,0.46516283]
[1768616017196,1.35030946,3289.3,3288.0,0.98694495]
[1768616017493,0.9165351,3289.2,3288.0,0.98694495]
[1768616018497,1.35030946,3289.2,3287.8,0.98694495]
[1768616018793,0.9165351,3289.1,3287.8,0.98694495]
[1768616018993,0.9165351,3289.0,3287.8,0.98694495]
[1768616019192,0.9165351,3288.9,3287.8,0.98694495]
[1768616019393,0.43377436,3289.2,3287.8,0.98694495]
[1768616019594,0.91643224,3289.1,3287.8,0.98694495]
[1768616019793,0.91643224,3289.0,3287.8,0.98694495]
[1768616019992,0.91643224,3288.9,3287.8,0.98694495]
[1768616020296,0.91643224,3288.8,3288.0,0.98694495]
[1768616020596,0.43377436,3289.2,3288.0,0.98694495]
[1768616020900,1.35020681,3289.1,3288.0,0.98694495]
[1768616021087,1.35020681,3289.0,3288.0,0.98694495]
[1768616021288,0.91643245,3288.9,3288.0,0.98694495]
[1768616021485,0.91643245,3288.8,3288.0,0.98694495]
[1768616021689,0.43377436,3289.0,3288.0,0.98694495]
[1768616021889,0.91627711,3288.9,3288.0,0.98694495]
[1768616022093,0.91627711,3288.8,3288.0,0.98694495]
[1768616022291,0.43377436,3289.0,3288.0,0.98694495]
[1768616022485,0.91616632,3288.9,3288.0,0.98694495]
[1768616022690,0.91616632,3288.8,3288.2,0.98694495]
[1768616022989,0.43377436,3289.4,3288.2,0.98694495]
[1768616023186,1.21552929,3289.3,3288.2,0.98694495]
[1768616023384,0.9160819,3289.2,3288.2,0.98694495]
[1768616023587,0.9160819,3289.1,3288.2,0.98694495]
[1768616023898,0.9160819,3289.0,3288.2,0.98694495]
[1768616024098,0.9160819,3288.9,3288.2,0.98694495]
[1768616024299,0.43377436,3289.4,3288.2,0.98694495]
[1768616024491,1.3497813,3289.3,3288.2,0.98694495]
[1768616024693,0.91600694,3289.2,3288.2,0.98694495]
[1768616024996,0.43377436,3289.3,3288.2,0.98694495]
[1768616024997,0.91600694,3289.1,3288.2,0.98694495]
[1768616025193,0.91600694,3289.0,3288.2,0.98694495]
[1768616025398,0.91600694,3288.9,3288.2,0.98694495]
[1768616025600,0.43377436,3289.3,3288.2,0.98694495]
[1768616025899,0.91595988,3289.2,3288.4,0.98694495]
[1768616026100,0.91595988,3289.1,3288.4,0.98694495]
[1768616026300,0.43377436,3289.3,3288.4,0.98694495]
[1768616026604,0.9159202,3289.2,3288.4,0.98694495]
[1768616026797,0.9159202,3289.1,3288.4,0.98694495]
[1768616026997,0.43377436,3289.3,3288.4,0.98694495]
[1768616027301,0.91588696,3289.2,3288.4,0.98694495]
[1768616027604,0.91588696,3289.1,3288.4,0.98694495]
[1768616027903,0.43377436,3289.3,3288.4,0.98694495]
[1768616028205,0.91588293,3289.2,3288.4,0.98694495]
[1768616028407,0.91588293,3289.1,3288.4,0.98694495]
[1768616028704,0.43377436,3289.3,3288.4,0.98694495]
[1768616028904,0.91587202,3289.2,3288.4,0.98694495]
[1768616029203,0.91587202,3289.1,3288.4,0.98694495]
[1768616029502,0.43377436,3289.3,3288.4,0.98694495]
[1768616029699,0.9158637,3289.2,3288.4,0.98694495]
[1768616029900,0.9158637,3289.1,3288.4,0.98694495]
[1768616030105,0.43377436,3289.3,3288.4,0.98694495]
[1768616030304,0.91585943,3289.2,3287.7,0.46809777]
[1768616030604,0.91585943,3289.1,3288.3,0.98694495]
[1768616030808,0.43377436,3289.3,3288.3,0.98694495]
[1768616031003,0.91585864,3289.2,3288.3,0.98694495]
[1768616031195,0.91585864,3289.1,3288.3,0.98694495]
[1768616031396,0.43377436,3289.3,3288.3,0.98694495]
[1768616031605,0.9158576,3289.2,3288.3,0.98694495]
[1768616031806,0.9158576,3289.1,3288.3,0.98694495]
[1768616032005,0.43377436,3289.3,3288.3,0.98694495]
[1768616032192,0.91586037,3289.2,3288.3,0.98694495]
[1768616032397,0.91586037,3289.1,3288.3,0.98694495]
[1768616032606,0.43377436,3289.3,3288.3,0.98694495]
[1768616032807,0.91585957,3289.2,3288.3,0.98694495]
[1768616033007,0.91585957,3289.1,3288.3,0.98694495]
[1768616033205,0.43889482,3289.2,3288.1,0.98694495]
[1768616033509,0.91586672,3289.1,3288.1,0.98694495]
[1768616033699,0.43889482,3289.2,3288.1,0.98694495]
[1768616033897,0.91586669,3289.1,3288.1,0.98694495]
[1768616034103,0.43889482,3289.2,3288.1,0.98694495]
[1768616034401,0.91587683,3289.1,3288.1,0.98694495]
[1768616034601,0.43889482,3289.2,3288.1,0.98694495]
[1768616034811,0.9158768,3289.1,3288.1,0.98694495]
[1768616035107,0.43889482,3289.2,3288.1,0.98694495]
[1768616035308,0.915891,3289.1,3288.1,0.98694495]
[1768616035510,0.43889482,3289.2,3288.1,0.98694495]
[1768616035710,0.91589096,3289.1,3288.1,0.98694495]
[1768616036014,0.43889482,3289.2,3288.1,0.98694495]
[1768616036202,0.91588361,3289.1,3288.1,0.98694495]
[1768616036401,0.43889482,3289.2,3288.1,0.98694495]
[1768616036608,0.91588723,3289.1,3288.1,0.98694495]
[1768616036807,0.43889482,3289.2,3288.1,0.98694495]
[1768616037010,0.91588716,3289.1,3288.1,0.98694495]
[1768616037204,0.43889482,3289.2,3288.1,0.98694495]
[1768616037502,0.91591019,3289.1,3288.1,0.98694495]
[1768616037697,0.43889482,3289.2,3288.1,0.98694495]
[1768616037908,0.91591021,3289.1,3288.1,0.98694495]
[1768616038109,0.43889482,3289.2,3288.1,0.98694495]
[1768616038309,0.91593771,3289.1,3288.1,0.98694495]
[1768616038509,0.43889482,3289.2,3288.1,0.98694495]
[1768616038704,0.91593773,3289.1,3288.1,0.98694495]
[1768616038905,0.43889482,3289.2,3288.1,0.98694495]
[1768616039204,0.91593765,3289.1,3288.1,0.98694495]
[1768616039404,0.43889482,3289.2,3288.1,0.98694495]
[1768616039703,0.91597125,3289.1,3288.1,0.98694495]
[1768616039906,0.43889482,3289.2,3288.1,0.98694495]
[1768616040205,0.91597141,3289.1,3288.1,0.98694495]
[1768616040505,0.43889482,3289.2,3288.1,0.98694495]
[1768616040802,0.91599191,3289.1,3288.1,0.98694495]
[1768616040999,0.43889482,3289.2,3288.1,0.98694495]
[1768616041214,0.91604584,3289.1,3288.1,0.98694495]
[1768616041413,0.43889482,3289.2,3288.1,0.98694495]
[1768616041603,0.91604486,3289.1,3288.1,0.98694495]
[1768616041804,0.43889482,3289.2,3288.1,0.98694495]
[1768616042008,0.91604431,3289.1,3288.1,0.98694495]
[1768616042213,0.43889482,3289.2,3288.1,0.98694495]
[1768616042414,0.9161022,3289.1,3288.1,0.98694495]
[1768616042610,0.43889482,3289.2,3288.1,0.98694495]
[1768616042804,0.91610222,3289.1,3288.1,0.98694495]
[1768616043004,0.43889482,3289.2,3288.1,0.98694495]
[1768616043213,0.91615934,3289.1,3288.1,0.98694495]
[1768616043419,0.43889482,3289.2,3288.1,0.98694495]
[1768616043616,0.9161666,3289.1,3288.1,0.98694495]
[1768616043914,0.43889482,3289.2,3288.1,0.98694495]
[1768616044216,0.91616656,3289.1,3288.1,0.98694495]
[1768616044413,0.43889482,3289.2,3288.1,0.98694495]
[1768616044614,0.91624776,3289.1,3288.1,0.98694495]
[1768616044813,0.43889482,3289.2,3288.1,0.98694495]
[1768616045014,0.91622138,3289.1,3288.1,0.98694495]
[1768616045216,0.91622138,3289.0,3288.1,0.98694495]
[1768616045411,0.43889482,3289.2,3288.1,0.98694495]
[1768616045611,0.91632644,3289.1,3288.1,0.98694495]
[1768616045812,0.91632644,3289.0,3288.1,0.98694495]
[1768616046116,0.43889482,3289.2,3288.1,0.98694495]
[1768616046319,0.91581215,3289.1,3288.1,0.98694495]
[1768616046518,0.91581215,3289.0,3288.1,0.98694495]
[1768616046719,0.43889482,3289.2,3288.1,0.98694495]
[1768616047018,0.91578274,3289.1,3288.1,0.98694495]
[1768616047221,0.91578274,3289.0,3288.1,0.98694495]
[1768616047521,0.43889482,3289.2,3288.1,0.98694495]
[1768616047821,0.91578465,3289.1,3288.1,0.98694495]
[1768616048117,0.91578465,3289.0,3288.1,0.98694495]
[1768616048315,0.43889482,3289.2,3288.1,0.98694495]
[1768616048517,0.91578807,3289.1,3288.1,0.98694495]
[1768616048720,0.91578807,3289.0,3288.1,0.98694495]
[1768616048920,0.43889482,3289.2,3288.1,0.98694495]
[1768616049229,0.91578807,3289.1,3288.1,0.98694495]
[1768616049409,0.91578807,3289.0,3288.1,0.98694495]
[1768616049609,0.43889482,3289.2,3288.1,0.98694495]
[1768616049820,0.91579139,3289.1,3288.1,0.98694495]
[1768616050118,0.91579139,3289.0,3288.1,0.98694495]
[1768616050318,0.43889482,3289.2,3288.1,0.98694495]
[1768616050512,0.91579365,3289.1,3288.1,0.98694495]
[1768616050713,0.91579365,3289.0,3288.1,0.98694495]
[1768616050908,0.43889482,3289.2,3288.1,0.98694495]
[1768616051113,0.91578502,3289.1,3288.1,0.98694495]
[1768616051316,0.91578502,3289.0,3288.1,0.98694495]
[1768616051517,0.43889482,3289.2,3288.1,0.98694495]
[1768616051718,0.9158009,3289.1,3288.1,0.98694495]
[1768616052009,0.9158009,3289.0,3288.1,0.98694495]
[1768616052209,0.43889482,3289.2,3288.1,0.98694495]
[1768616052409,0.91581799,3289.1,3288.1,0.98694495]
[1768616052605,0.91581799,3289.0,3288.1,0.98694495]
[1768616052910,0.43889482,3289.2,3288.1,0.98694495]
[1768616053111,0.9158166,3289.1,3288.1,0.98694495]
[1768616053423,0.9158166,3289.0,3287.7,1.45526612]
[1768616053627,0.43889482,3289.2,3287.7,1.45526612]
[1768616053922,0.91583753,3289.1,3287.7,1.45526612]
[1768616054119,0.91583753,3289.0,3287.7,1.45526612]
[1768616054420,0.43889482,3289.2,3287.7,1.45526612]
[1768616054620,0.91586396,3289.1,3287.7,1.45526612]
[1768616054810,0.91586396,3289.0,3287.7,1.45526612]
[1768616055012,0.43889482,3289.2,3287.7,0.99010329]
[1768616055218,0.15206,3289.6,3287.7,0.99010329]
[1768616055219,1.35477157,3289.1,3287.7,0.99010329]
[1768616055524,0.91587675,3289.0,3287.7,0.99010329]
[1768616080731,0.43889482,3289.1,3287.7,0.99010329]
[1768616087041,0.15206,3289.6,3287.7,0.99010329]
[1768616087246,1.63792231,3289.5,3287.7,1.4352641]
[1768616087445,1.63792231,3289.4,3287.7,1.4352641]
[1768616087743,0.91208527,3289.3,3287.7,1.4352641]
[1768616087930,0.91208527,3289.2,3287.7,1.4352641]
[1768616088131,0.91208527,3289.1,3287.7,1.4352641]
[1768616088335,0.42223494,3289.4,3287.7,1.4352641]
[1768616088637,0.91201123,3289.3,3287.7,1.4352641]
[1768616088934,0.91201123,3289.2,3287.7,1.4352641]
[1768616089136,0.91201123,3289.1,3287.7,1.4352641]
[1768616089336,0.42223494,3289.4,3287.7,1.4352641]
[1768616089536,0.91200201,3289.3,3287.7,1.4352641]
[1768616089836,0.91200201,3289.2,3287.7,1.4352641]
[1768616090035,0.91200201,3289.1,3287.7,1.4352641]
[1768616090237,0.42223494,3289.4,3287.7,1.4352641]
[1768616090437,0.9119961,3289.3,3287.7,1.4352641]
[1768616090637,0.9119961,3289.2,3287.7,1.4352641]
[1768616090838,0.9119961,3289.1,3287.7,1.4352641]
[1768616091036,0.42223494,3289.4,3287.7,1.4352641]
[1768616091246,0.9119953,3289.3,3287.7,1.4352641]
[1768616091543,0.9119953,3289.2,3287.7,1.4352641]
[1768616091733,0.9119953,3289.1,3287.7,1.4352641]
[1768616091937,0.42223494,3289.4,3287.7,1.4352641]
[1768616092146,0.91199012,3289.3,3287.7,1.4352641]
[1768616092446,0.91199012,3289.2,3287.7,1.4352641]
[1768616092648,0.91199012,3289.1,3287.7,1.4352641]
[1768616092946,0.42223494,3289.4,3287.7,1.4352641]
[1768616093247,0.91198657,3289.3,3287.7,1.4352641]
[1768616093542,0.91198657,3289.2,3287.7,1.4352641]
[1768616093744,0.91198657,3289.1,3287.7,1.4352641]
[1768616093948,0.42223494,3289.4,3287.7,1.4352641]
[1768616094147,0.9119819,3289.3,3287.7,1.4352641]
[1768616094335,0.9119819,3289.2,3287.7,1.4352641]
[1768616094537,0.9119819,3289.1,3287.7,1.4352641]
[1768616094741,0.42223494,3289.4,3287.7,1.4352641]
[1768616094947,0.91198025,3289.3,3287.7,1.4352641]
[1768616095150,0.91198025,3289.2,3287.7,1.4352641]
[1768616095348,0.91198025,3289.1,3287.7,1.4352641]
[1768616095544,0.42223494,3289.4,3287.7,1.4352641]
[1768616095745,0.91197982,3289.3,3287.7,1.4352641]
[1768616095949,0.91197982,3289.2,3287.7,1.4352641]
[1768616096143,0.91197982,3289.1,3287.7,1.4352641]
[1768616096342,0.42223494,3289.4,3287.7,1.4352641]
[1768616096543,0.91198149,3289.3,3287.7,1.4352641]
[1768616096747,0.91198149,3289.2,3287.7,1.4352641]
[1768616096947,0.91198149,3289.1,3287.7,1.4352641]
[1768616097245,0.42223494,3289.4,3287.7,1.4352641]
[1768616097445,0.91198471,3289.3,3287.7,1.4352641]
[1768616097646,0.91198471,3289.2,3287.7,1.4352641]
[1768616097847,0.91198471,3289.1,3287.7,1.4352641]
[1768616098048,0.42223494,3289.4,3287.7,1.4352641]
[1768616098243,0.91198473,3289.3,3287.7,1.4352641]
[1768616098447,0.91198473,3289.2,3287.7,1.4352641]
[1768616098650,0.91198877,3289.1,3287.7,1.4352641]
[1768616098851,0.42223494,3289.4,3287.7,1.4352641]
[1768616099057,0.91198954,3289.3,3287.7,1.4352641]
[1768616099352,0.91198954,3289.2,3287.7,1.4352641]
[1768616099554,0.91198954,3289.1,3287.7,1.4352641]
[1768616099741,0.42223494,3289.4,3287.7,1.4352641]
[1768616099945,0.91199529,3289.3,3287.7,1.4352641]
[1768616100141,0.42223494,3289.4,3287.7,1.4352641]
[1768616100142,0.91199529,3289.2,3287.7,1.4352641]